[Event "9th A. Margaryan Memorial 2019"]
[Site "Yerevan"]
[Date "2019.01.13"]
[Round "6"]
[White "Davtyan, Artur"]
[Black "Sargsyan, Tigran R."]
[Result "1-0"]
[ECO "D11"]
[WhiteElo "2396"]
[BlackElo "2332"]
[Annotator "NA"]
[PlyCount "63"]
[EventDate "2019.01.08"]
[EventType "tourn"]
[EventCountry "ARM"]
[SourceTitle "playchess.com"]
[Source "ChessBase"]
[SourceQuality "1"]
[TimeControl "40/5400+30:1800+30"]

1. d4 {[%emt 0:04:16]} d5 {[%emt 0:00:00]} 2. c4 {[%emt 0:00:04]} c6 {[%emt 0:00:00]} 3. Nf3 {[%emt 0:00:03]} Nf6 {[%emt 0:00:00]} 4. e3 {[%emt 0:00:03]} Bg4 {[%emt 0:01:02]} 5. h3 {[%emt 0:00:06]} Bh5 {[%emt 0:00:07]} 6. g4 {[%emt 0:00:04]} Bg6 {[%emt 0:00:06]} 7. Nc3 {[%emt 0:00:02]} e6 {[%emt 0:01:14]} 8. Ne5 {[%emt 0:00:03]} Nbd7 {[%emt 0:00:12]} 9. h4 {[%emt 0:00:01]} dxc4 {[%emt 0:01:24]} 10. Nxg6 {[%emt 0:00:20]} hxg6 {[%emt 0:00:06]} 11. g5 {[%emt 0:00:02]} Nd5 {[%emt 0:00:32]} 12. Bxc4 {[%emt 0:00:05]} Bb4 {[%emt 0:00:47]} 13. Bd2 {[%emt 0:00:05]} Qe7 {[%emt 0:04:43]} 14. a3 {[%emt 0:06:25]} Bxc3 {[%emt 0:06:06]} 15. bxc3 {[%emt 0:00:36]} e5 {[%emt 0:02:06]} 16. Qf3 {[%emt 0:16:39]} e4 {[%emt 0:16:30]} 17. Qg4 {[%emt 0:10:44]} N5b6 {[%emt 0:08:23]} 18. Be2 {[%emt 0:07:52]} Nc8 {[%emt 0:08:13]} 19. c4 {[%emt 0:13:37]} c5 {[%emt 0:03:46]} 20. dxc5 {[%emt 0:00:02]} Nxc5 {[%emt 0:04:12]} 21. Bb4 {[%emt 0:01:43]} b6 {[%emt 0:05:20]} 22. Rd1 {[%emt 0:09:43]} Nd6 {[%emt 0:04:10]} 23. Bxc5 {[%emt 0:02:11]} bxc5 {[%emt 0:00:47]} 24. Rxd6 {[%emt 0:00:12]} Qxd6 {[%emt 0:02:55]} 25. Qxe4+ {[%emt 0:00:03]} Kd7 {[%emt 0:00:30]} 26. Qb7+ {[%emt 0:01:12]} Qc7 {[%emt 0:07:38]} 27. Bg4+ {[%emt 0:00:05]} Kd6 {[%emt 0:00:05]} 28. Qd5+ {[%emt 0:00:03]} Ke7 {[%emt 0:00:04]} 29. Qe4+ {[%emt 0:00:02]} Kd6 {[%emt 0:00:16]} 30. O-O {[%emt 0:00:28]} Qc6 {[%emt 0:00:51]} 31. Rd1+ {[%emt 0:00:07]} Kc7 {[%emt 0:00:05]} 32. Qe7+ {[%emt 0:00:13]} 1-0

[Event "9th A. Margaryan Memorial 2019"]
[Site "Yerevan"]
[Date "2019.01.14"]
[Round "7"]
[White "Sargsyan, Anna M."]
[Black "Barseghyan, Armen Ar."]
[Result "0-1"]
[ECO "A61"]
[WhiteElo "2339"]
[BlackElo "2380"]
[Annotator "NA"]
[PlyCount "76"]
[EventDate "2019.01.08"]
[EventType "tourn"]
[EventCountry "ARM"]
[SourceTitle "playchess.com"]
[Source "ChessBase"]
[SourceQuality "1"]
[TimeControl "40/5400+30:1800+30"]

1. Nf3 {[%emt 0:00:00]} Nf6 {[%emt 0:00:00]} 2. d4 {[%emt 0:00:00]} g6 {[%emt 0:00:02]} 3. c4 {[%emt 0:00:00]} c5 {[%emt 0:00:23]} 4. d5 {[%emt 0:00:00]} e6 {[%emt 0:00:31]} 5. Nc3 {[%emt 0:00:11]} exd5 {[%emt 0:00:23]} 6. cxd5 {[%emt 0:00:06]} d6 {[%emt 0:00:03]} 7. Nd2 {[%emt 0:00:04]} Bg7 {[%emt 0:00:42]} 8. e4 {[%emt 0:00:10]} O-O {[%emt 0:01:11]} 9. Be2 {[%emt 0:00:05]} Na6 {[%emt 0:03:21]} 10. O-O {[%emt 0:01:09]} Ne8 {[%emt 0:01:31]} 11. Nc4 {[%emt 0:01:47]} Rb8 {[%emt 0:07:48]} 12. a4 {[%emt 0:02:05]} f5 {[%emt 0:00:45]} 13. exf5 {[%emt 0:08:33]} Bxf5 {[%emt 0:00:26]} 14. Bf4 {[%emt 0:00:28]} Nb4 {[%emt 0:04:15]} 15. Qd2 {[%emt 0:16:50]} Nc2 {[%emt 0:08:30]} 16. Nb5 {[%emt 0:02:47]} ({White should try} 16. Rac1 $11 Nd4 17. Bd1) 16... Nxa1 {[%emt 0:07:21]} 17. Rxa1 {[%emt 0:00:10]} Bd7 $11 {[%emt 0:07:56]} 18. Bg5 {[%emt 0:26:29]} Bf6 {[%emt 0:02:26]} 19. Bh6 {[%emt 0:00:12]} Bxb5 {[%emt 0:00:31]} 20. axb5 {[%emt 0:00:09]} Bg7 {[%emt 0:00:36]} 21. Bg5 {[%emt 0:00:12]} Qd7 {[%emt 0:01:58]} 22. Rxa7 {[%emt 0:03:36]} Bd4 {[%emt 0:12:00]} 23. Be3 {[%emt 0:03:00]} Bxe3 {[%emt 0:01:09]} 24. Nxe3 {[%emt 0:00:56]} Nf6 {[%emt 0:02:41]} 25. Qa5 {[%emt 0:02:21]} Ne4 {[%emt 0:07:01]} 26. Bf3 {[%emt 0:06:07]} Ng5 {[%emt 0:05:50]} 27. Be2 {[%emt 0:00:12]} Qf7 {[%emt 0:00:41]} 28. Ng4 {[%emt 0:04:10]} Qf4 {[%emt 0:05:33]} 29. Qe1 {[%emt 0:05:33]} h5 {[%emt 0:02:24]} 30. Ne3 {[%emt 0:00:06]} Rf7 {[%emt 0:02:04]} 31. b3 {[%emt 0:02:57]} Rbf8 {[%emt 0:02:57]} 32. Bc4 {[%emt 0:00:13]} Qd4 {[%emt 0:02:49]} 33. Ra2 {[%emt 0:00:40]} Ne4 {[%emt 0:01:08]} 34. f3 {[%emt 0:00:55]} Ng5 {[%emt 0:00:13]} 35. Rd2 {[%emt 0:01:14]} Qf4 {[%emt 0:03:34]} 36. h4 {[%emt 0:01:42]} Re7 {[%emt 0:00:38]} 37. Re2 {[%emt 0:02:06]} Rfe8 {[%emt 0:00:54]} 38. Qb1 {[%emt 0:02:25]} Kg7 {[%emt 0:03:16]} 0-1

[Event "9th A. Margaryan Memorial 2019"]
[Site "Yerevan"]
[Date "2019.01.16"]
[Round "9"]
[White "Barseghyan, Armen Ar."]
[Black "Davtyan, Artur"]
[Result "0-1"]
[ECO "C45"]
[WhiteElo "2380"]
[BlackElo "2396"]
[Annotator "NA"]
[PlyCount "196"]
[EventDate "2019.01.08"]
[EventType "tourn"]
[EventCountry "ARM"]
[SourceTitle "playchess.com"]
[Source "ChessBase"]
[SourceQuality "1"]
[TimeControl "40/5400+30:1800+30"]

1. e4 {[%emt 0:00:00]} e5 {[%emt 0:00:33]} 2. Nf3 {[%emt 0:00:00]} Nc6 {[%emt 0:00:04]} 3. d4 {[%emt 0:00:03]} exd4 {[%emt 0:00:04]} 4. Nxd4 {[%emt 0:00:08]} Bc5 {[%emt 0:00:05]} 5. Nb3 {[%emt 0:00:28]} Bb6 {[%emt 0:00:02]} 6. Nc3 {[%emt 0:00:16]} Nf6 {[%emt 0:00:05]} 7. Qe2 {[%emt 0:00:23] C45: Scotch Game} O-O {[%emt 0:00:10]} 8. Bg5 {[%emt 0:00:24]} h6 {[%emt 0:00:01]} 9. Bh4 {[%emt 0:00:12]} a5 {[%emt 0:00:05]} 10. a4 {[%emt 0:00:53]} Nd4 {[%emt 0:00:37]} 11. Qd3 {[%emt 0:00:42]} Nxb3 {[%emt 0:02:25]} 12. cxb3 {[%emt 0:00:08]} c6 {[%emt 0:00:28]} 13. O-O-O {[#]} g5 $146 {[%emt 0:02:38]} ({Predecessor:} 13... d5 14. exd5 cxd5 15. Bxf6 Qxf6 16. Nxd5 Qxf2 {½-½ (72) Vitiugov,N (2730)-Oparin,G (2609) Linares 2018}) 14. Bg3 {[%emt 0:04:55]} d5 {[%emt 0:00:01]} 15. Qc2 {[%emt 0:02:10]} Be6 {[%emt 0:22:16]} 16. Kb1 {[%emt 0:07:08]} Qe7 {[%emt 0:11:59]} 17. f3 {[%emt 0:05:39]} Rad8 {[%emt 0:05:51]} 18. e5 {[%emt 0:04:15]} Nh5 {[%emt 0:02:52]} 19. Bd3 {[%emt 0:03:58]} f6 {[%emt 0:12:49]} 20. Bg6 {[%emt 0:06:12]} (20. Ne2 $11 {keeps the balance.}) 20... Nf4 {[%emt 0:09:01]} 21. Bxf4 {[%emt 0:34:08]} gxf4 {[%emt 0:00:03]} 22. exf6 {[%emt 0:00:27]} Qxf6 {[%emt 0:00:11]} 23. g4 {[%emt 0:00:37]} Kg7 {[%emt 0:12:49]} 24. Bd3 {[%emt 0:11:30] [#]} h5 $1 {[%emt 0:00:01]} 25. gxh5 {[%emt 0:01:49]} Kh6 {[%emt 0:02:45]} 26. Rde1 {[%emt 0:08:27]} Kxh5 27. Nd1 Bf5 {[%emt 0:12:28]} 28. Bxf5 {[%emt 0:01:15]} Qxf5 {[%emt 0:00:02]} 29. Re7 {[%emt 0:00:05]} Qxc2+ {[%emt 0:02:07]} 30. Kxc2 {[%emt 0:00:01]} Rb8 $1 {[%emt 0:00:58]} 31. Rhe1 {[%emt 0:01:02]} Kg6 {[%emt 0:00:02]} (31... Bc5 $5 {[%cal Rc5e7]} 32. R7e6 Rg8 $15) 32. R1e2 {[%emt 0:06:25]} Rf7 {[%emt 0:00:36]} 33. R7e6+ {[%emt 0:00:19]} Rf6 34. Re7 Bc5 {[%emt 0:02:02]} 35. Rg2+ {[%emt 0:00:59]} Kf5 {[%emt 0:00:01]} 36. Reg7 {[%emt 0:01:08]} Re8 {[%emt 0:00:34]} 37. Rxb7 {[%emt 0:01:45]} Re1 $1 {[%emt 0:00:01]} 38. h4 {[%emt 0:00:36]} Rf1 $1 {[%emt 0:00:39]} 39. Rg5+ {[%emt 0:00:31]} Ke6 {[%emt 0:00:00]} 40. Rc7 {[%emt 0:00:00]} Kd6 {[%emt 0:00:00]} 41. Rgg7 {[%emt 0:06:25]} Rxf3 42. Rge7 Bb4 {[%emt 0:07:15]} 43. h5 {[%emt 0:16:52]} Rf1 {[%emt 0:06:36]} 44. Rcd7+ {[%emt 0:03:51]} Kc5 {[%emt 0:00:02]} 45. Rf7 {[%emt 0:00:00]} Re6 {[%emt 0:12:10]} 46. Rde7 Re4 {[%emt 0:02:42]} 47. h6 {[%emt 0:01:52]} f3 {[%emt 0:00:16]} 48. Rxe4 {[%emt 0:02:32]} dxe4 {[%emt 0:00:04]} 49. h7 {[%emt 0:03:24]} Rh1 {[%emt 0:00:24]} 50. Nf2 {[%emt 0:00:21]} Rh2 {[%emt 0:00:52]} 51. h8=Q {[%emt 0:00:24]} Rxh8 {[%emt 0:01:04]} 52. Nxe4+ {[%emt 0:00:47]} Kd5 {[%emt 0:00:29]} 53. Ng3 {[%emt 0:00:31]} Rh2+ {[%emt 0:00:45]} 54. Kb1 {[%emt 0:00:32]} Rf2 {[%emt 0:00:25]} 55. Rf5+ {[%emt 0:00:18]} Kd4 {[%emt 0:00:58]} 56. Rf6 {[%emt 0:00:40]} c5 {[%emt 0:03:50]} 57. Rf7 {[%emt 0:00:17]} Ke3 58. Nf5+ {[%emt 0:00:23]} Kd3 {[%emt 0:00:52]} 59. Ng3 {[%emt 0:00:51]} Bd2 {[%emt 0:00:53]} 60. Rd7+ {[%emt 0:00:29]} Ke3 {[%emt 0:01:41]} 61. Rf7 Rg2 {[%emt 0:00:00]} 62. Nf1+ {[%emt 0:00:36]} Ke4 {[%emt 0:00:01]} 63. Re7+ {[%emt 0:00:44]} Kf4 {[%emt 0:00:13]} 64. Rf7+ {[%emt 0:00:20]} Kg4 {[%emt 0:00:23]} 65. Kc2 {[%emt 0:00:50]} Bg5+ {[%emt 0:01:28]} 66. Kd3 {[%emt 0:00:23]} Rxb2 {[%emt 0:00:12]} 67. Ke4 {[%emt 0:00:09]} Re2+ {[%emt 0:00:52]} 68. Kd3 {[%emt 0:00:43]} Re1 {[%emt 0:00:01]} 69. Nh2+ Kg3 {[%emt 0:00:01]} 70. Nxf3 {[%emt 0:00:59]} Re3+ {[%emt 0:00:08]} 71. Kc4 {[%emt 0:00:00]} Rxf3 {[%emt 0:01:47]} 72. Rg7 {[%emt 0:01:01]} Kg4 {[%emt 0:00:35]} 73. Rb7 {[%emt 0:00:34]} Bd2 {[%emt 0:01:03]} 74. Kxc5 {[%emt 0:00:26]} Rc3+ 75. Kd4 Rc1 {[%emt 0:01:22]} 76. Rg7+ {[%emt 0:01:12]} Kf3 {[%emt 0:00:01]} 77. Rh7 {[%emt 0:00:32]} Bc3+ {[%emt 0:00:01]} 78. Kd5 {[%emt 0:00:17]} (78. Kd3 $142 Bb4 79. Kd4) 78... Bb4 {[%emt 0:00:00]} 79. Rh3+ {[%emt 0:00:45]} Kg4 {[%emt 0:00:00]} 80. Rh2 {[%emt 0:00:19]} Rc3 {[%emt 0:00:12]} 81. Rb2 {[%emt 0:00:49]} Kf4 82. Kd4 {[%emt 0:00:50]} Kf3 {[%emt 0:00:36]} 83. Rh2 {[%emt 0:00:15]} Kg3 {[%emt 0:00:17]} 84. Rb2 {[%emt 0:00:04]} Kf4 {[%emt 0:00:02]} 85. Rb1 {[%emt 0:00:22]} Rf3 {[%emt 0:00:09]} 86. Kc4 {[%emt 0:00:54]} Ke4 87. Rb2 {[%emt 0:00:01]} Rc3+ {[%emt 0:00:13]} 88. Kb5 {[%emt 0:00:15]} Kd3 89. Rh2 Rxb3 {[%emt 0:00:13]} 90. Ka6 {[%emt 0:01:46]} Kc3 {[%emt 0:00:15]} 91. Rh5 {[%emt 0:01:07]} Kb2 {[%emt 0:00:05]} 92. Kb5 {[%emt 0:00:34]} Rc3 {[%emt 0:00:31]} 93. Rg5 {[%emt 0:00:31]} Kb3 {[%emt 0:00:02]} 94. Rh5 {[%emt 0:00:06]} Re3 {[%emt 0:00:03]} 95. Rf5 {[%emt 0:00:22]} Bc3 {[%emt 0:00:01]} 96. Rh5 {[%emt 0:00:18]} Re4 {[%emt 0:00:13]} 97. Rc5 {[%emt 0:00:20]} Rf4 {[%emt 0:00:13]} 98. Rc6 {[%emt 0:01:24]} Rf5+ {[%emt 0:00:04]} 0-1